bitfinex/quotes_BTCUSD_20250110
["timestamp","ask_amount","ask_price","bid_price","bid_amount"]
[1736506113458,0.3284,95109.0,95099.0,0.00873993]
[1736506113624,0.3314,95109.0,95099.0,0.00873993]
[1736506113861,0.3304,95109.0,95096.0,0.09432029]
[1736506114092,0.3334,95109.0,95100.0,0.00873916]
[1736506114321,0.3334,95109.0,95095.0,0.285815]
[1736506114322,0.3284,95109.0,95097.0,0.09432029]
[1736506114529,0.3284,95109.0,95101.0,0.00873839]
[1736506114733,0.3314,95109.0,95097.0,0.09432029]
[1736506114962,0.3314,95109.0,95102.0,0.00873762]
[1736506115140,0.3314,95109.0,95098.0,0.09432029]
[1736506115437,0.3274,95109.0,95098.0,0.09432029]
[1736506115650,0.3274,95109.0,95107.0,0.210289]
[1736506115785,0.3284,95109.0,95107.0,0.210289]
[1736506115997,0.3284,95109.0,95108.0,0.00873299]
[1736506116251,0.291145,95127.0,95108.0,0.00873299]
[1736506116514,0.30164269,95127.0,95108.0,0.00873299]
[1736506116644,0.001,95109.0,95108.0,0.00873299]
[1736506117049,0.30164269,95127.0,95108.0,0.00873299]
[1736506117253,0.003,95109.0,95108.0,0.00873299]
[1736506117669,0.30364269,95127.0,95108.0,0.00873299]
[1736506117857,0.210254,95123.0,95108.0,0.00873299]
[1736506118051,0.210263,95119.0,95108.0,0.01073299]
[1736506118943,0.210263,95119.0,95108.0,0.00873299]
[1736506119152,0.212263,95119.0,95108.0,0.001]
[1736506119568,0.212263,95119.0,95102.0,0.09432029]
[1736506119769,0.212263,95119.0,95103.0,0.00873685]
[1736506120022,0.213263,95119.0,95103.0,0.00873685]
[1736506120445,0.212263,95119.0,95103.0,0.00873685]
[1736506120888,0.217263,95119.0,95103.0,0.00873685]
[1736506121303,0.212263,95119.0,95103.0,0.10305714]
[1736506121479,0.217263,95119.0,95103.0,0.10305714]
[1736506122081,0.215263,95119.0,95103.0,0.10305714]
[1736506122396,0.212263,95119.0,95103.0,0.10305714]
[1736506122591,0.422526,95119.0,95103.0,0.10305714]
[1736506122798,0.210267,95117.0,95103.0,0.10305714]
[1736506123228,0.210267,95117.0,95103.0,0.00873685]
[1736506123443,0.210271,95115.0,95103.0,0.00873685]
[1736506124253,0.420543,95115.0,95103.0,0.00873685]
[1736506124946,0.423543,95115.0,95100.0,0.09432029]
[1736506125157,0.423543,95115.0,95104.0,0.00873529]
[1736506125362,0.423543,95115.0,95099.0,0.0009949]
[1736506125738,0.423543,95115.0,95100.0,0.00873837]
[1736506126142,0.43203385,95115.0,95100.0,0.00873837]
[1736506126681,0.210283,95110.0,95100.0,0.00873837]
[1736506126830,0.42057,95109.0,95100.0,0.00873837]
[1736506127686,0.210285,95109.0,95100.0,0.00873837]
[1736506128096,0.210285,95109.0,95099.0,0.0009949]
[1736506128308,0.537685,95109.0,95099.0,0.0009949]
[1736506128545,0.537685,95109.0,95100.0,0.00873837]
[1736506129072,0.537685,95109.0,95099.0,0.0009949]
[1736506130394,0.539685,95109.0,95099.0,0.0009949]
[1736506131365,0.543685,95109.0,95099.0,0.0009949]
[1736506131682,0.3274,95103.0,95099.0,0.0009949]
[1736506131888,0.10429976,95102.0,95099.0,0.0009949]
[1736506132177,0.31459976,95102.0,95091.0,0.09432029]
[1736506132378,0.21031,95098.0,95091.0,0.09432029]
[1736506132495,0.21031,95098.0,95092.0,0.0083793]
[1736506132742,0.31459976,95102.0,95092.0,0.0083793]
[1736506132743,0.210318,95095.0,95092.0,0.0083793]
[1736506133010,0.210318,95095.0,95090.0,0.09432029]
[1736506133219,0.210318,95095.0,95088.0,0.00014604]
[1736506133343,0.210318,95095.0,95091.0,0.00838127]
[1736506133558,0.210318,95095.0,95088.0,0.00014604]
[1736506133905,0.210311,95097.0,95089.0,0.00838281]
[1736506134294,0.210311,95097.0,95088.0,0.00014604]
[1736506134508,0.31459976,95102.0,95091.0,0.002]
[1736506134754,0.31459976,95102.0,95089.0,0.00838281]
[1736506135046,0.52490076,95102.0,95088.0,0.00014604]
[1736506135313,0.52490076,95102.0,95089.0,0.001]
[1736506135536,0.210309,95098.0,95089.0,0.00838457]
[1736506135765,0.210309,95098.0,95091.0,0.001]
[1736506136215,0.210309,95098.0,95088.0,0.00014604]
[1736506136679,0.210309,95098.0,95089.0,0.00838457]
[1736506137125,0.210309,95098.0,95088.0,0.00014604]
[1736506137514,0.210309,95098.0,95089.0,0.00838457]
[1736506137714,0.211309,95098.0,95089.0,0.00838457]
[1736506137971,0.211309,95098.0,95088.0,0.00014604]
[1736506138295,0.211309,95098.0,95089.0,0.00838457]
[1736506138811,0.211309,95098.0,95088.0,0.00014604]
[1736506139003,0.211309,95098.0,95089.0,0.00838457]
[1736506139199,0.213309,95098.0,95089.0,0.00838457]
[1736506139366,0.212309,95098.0,95088.0,0.00014604]
[1736506139540,0.212309,95098.0,95089.0,0.00838457]
[1736506139788,0.213309,95098.0,95088.0,0.00014604]
[1736506140028,0.213309,95098.0,95089.0,0.00838457]
[1736506140535,0.212309,95098.0,95088.0,0.00014604]
[1736506140783,0.425619,95098.0,95088.0,0.00014604]
[1736506141004,0.425619,95098.0,95089.0,0.00838457]
[1736506141480,0.421619,95098.0,95088.0,0.00014604]
[1736506141984,0.421619,95098.0,95089.0,0.00838377]
[1736506141985,0.213309,95098.0,95089.0,0.00838377]
[1736506142234,0.210318,95094.0,95088.0,0.00014604]
[1736506142698,0.210318,95094.0,95089.0,0.00838377]
[1736506143180,0.210318,95094.0,95088.0,0.00014604]
[1736506143703,0.210318,95094.0,95089.0,0.00838377]
[1736506143901,0.210318,95094.0,95088.0,0.00014604]
[1736506144607,0.210311,95097.0,95089.0,0.00838377]
[1736506145117,0.210311,95097.0,95088.0,0.00014604]
[1736506145639,0.210311,95097.0,95089.0,0.00838536]
[1736506147045,0.212311,95097.0,95089.0,0.00838536]
[1736506147730,0.213311,95097.0,95088.0,0.00014604]
[1736506148139,0.213311,95097.0,95089.0,0.00838536]
[1736506148359,0.003,95097.0,95089.0,0.00838536]
[1736506148577,0.213312,95097.0,95088.0,0.00014604]
[1736506148795,0.213312,95097.0,95090.0,0.00838459]
[1736506149002,0.211312,95097.0,95089.0,0.00838536]
[1736506149209,0.210312,95097.0,95091.0,0.00838381]
[1736506149416,0.210312,95097.0,95090.0,0.00838459]
[1736506149640,0.211312,95097.0,95091.0,0.00838381]
[1736506150029,0.420606,95101.0,95088.0,0.00014604]
[1736506150241,0.212313,95097.0,95088.0,0.00014604]
[1736506150456,0.210313,95097.0,95089.0,0.00838536]
[1736506150662,0.211313,95097.0,95089.0,0.00838536]
[1736506150867,0.213313,95097.0,95088.0,0.00014604]
[1736506151073,0.210313,95097.0,95090.0,0.00838459]
[1736506151336,0.210313,95097.0,95089.0,0.00838536]
[1736506151542,0.212313,95097.0,95091.0,0.00838381]
[1736506151743,0.212313,95097.0,95090.0,0.00838459]
[1736506151923,0.212313,95097.0,95092.0,0.00838304]
[1736506152125,0.212313,95097.0,95091.0,0.00838381]
[1736506152327,0.212313,95097.0,95093.0,0.00838227]
[1736506152589,0.212313,95097.0,95088.0,0.00014604]
[1736506152972,0.212313,95097.0,95089.0,0.00838536]
[1736506153135,0.211313,95097.0,95089.0,0.00838536]
[1736506153518,0.213313,95097.0,95089.0,0.00838536]
[1736506153720,0.210313,95097.0,95089.0,0.00838536]
[1736506153918,0.212313,95097.0,95089.0,0.00838536]
[1736506154126,0.213313,95097.0,95089.0,0.00838536]
[1736506154319,0.003,95097.0,95090.0,0.078]
[1736506154541,0.005,95097.0,95090.0,0.078]
[1736506154740,0.005,95097.0,95091.0,0.00838381]
[1736506155620,0.004,95097.0,95091.0,0.00838381]
[1736506155825,0.005,95097.0,95091.0,0.00838381]
[1736506156405,0.004,95097.0,95091.0,0.00838381]
[1736506156763,0.002,95097.0,95091.0,0.00838381]
[1736506156964,0.2103,95102.0,95091.0,0.00838381]
[1736506157175,0.002,95097.0,95091.0,0.00838381]
[1736506157610,0.2103,95102.0,95091.0,0.00838381]
[1736506157933,0.001,95097.0,95091.0,0.00838381]
[1736506158715,0.2103,95102.0,95091.0,0.00838381]
[1736506159504,0.2103,95102.0,95091.0,0.01038381]
[1736506160136,0.15,95110.0,95096.0,0.210313]
[1736506160529,0.15,95110.0,95097.0,0.00837831]
[1736506161324,0.002,95110.0,95097.0,0.00837831]
[1736506161752,0.360279,95112.0,95099.0,0.0785]
[1736506161960,0.002,95110.0,95099.0,0.0785]
[1736506162575,0.003,95110.0,95099.0,0.0785]
[1736506162799,0.003,95110.0,95100.0,0.008376]
[1736506163014,0.210285,95109.0,95100.0,0.008376]
[1736506163231,0.210285,95109.0,95099.0,0.0785]
[1736506164518,0.210293,95106.0,95099.0,0.0785]
[1736506164714,0.210293,95106.0,95100.0,0.008376]
[1736506168713,0.210285,95109.0,95100.0,0.008376]
[1736506169836,0.211285,95109.0,95100.0,0.008376]
[1736506170522,0.213285,95109.0,95100.0,0.008376]
[1736506170972,0.003,95109.0,95100.0,0.008376]
[1736506180359,0.0423556,95108.0,95100.0,0.008376]
[1736506180559,0.003,95109.0,95098.0,0.09432029]
[1736506180767,0.003,95109.0,95101.0,0.00837206]
[1736506181015,0.003,95109.0,95099.0,0.0083736]
[1736506181224,0.002,95109.0,95102.0,0.00837129]
[1736506181425,0.210278,95112.0,95098.0,0.09432029]
[1736506181753,0.001,95108.0,95099.0,0.0083736]
[1736506181958,0.001,95108.0,95100.0,0.288004]
[1736506182464,0.001,95108.0,95101.0,0.00837206]
[1736506182879,0.21027,95116.0,95101.0,0.00837206]
[1736506183308,0.002,95109.0,95102.0,0.09432029]
[1736506183709,0.001,95108.0,95103.0,0.00837052]
[1736506184140,0.21027,95116.0,95100.0,0.17202029]
[1736506184315,0.002,95109.0,95104.0,0.00836975]
[1736506184517,0.002,95109.0,95101.0,0.00837206]
[1736506184768,0.002,95109.0,95105.0,0.00836897]
[1736506184959,0.001,95108.0,95100.0,0.17202029]
[1736506185179,0.001,95108.0,95106.0,0.0083682]
[1736506185373,0.001,95108.0,95100.0,0.17202029]
[1736506185817,0.001,95108.0,95101.0,0.00837206]
[1736506186230,0.21027,95116.0,95101.0,0.00837206]
[1736506186586,0.002,95109.0,95101.0,0.10269235]
[1736506187148,0.001,95108.0,95101.0,0.10269235]
[1736506187366,0.21027,95116.0,95101.0,0.10269235]
[1736506187745,0.21027,95116.0,95101.0,0.10469235]
[1736506187946,0.21027,95116.0,95101.0,0.10269235]
[1736506188121,0.21027,95116.0,95101.0,0.00837206]
[1736506188732,0.21027,95116.0,95101.0,0.00937206]
[1736506189346,0.21027,95116.0,95101.0,0.01037206]
[1736506189499,0.21027,95116.0,95101.0,0.00837206]
[1736506190323,0.21027,95116.0,95102.0,0.09432029]
[1736506190527,0.21127,95116.0,95102.0,0.10269158]
[1736506191138,0.21027,95116.0,95102.0,0.10269158]
[1736506192556,0.21127,95116.0,95102.0,0.10269158]
[1736506194898,0.21127,95116.0,95103.0,0.09432029]
[1736506195407,0.21127,95116.0,95104.0,0.00836975]
[1736506196176,0.210273,95114.0,95104.0,0.00836975]
[1736506197112,0.420547,95114.0,95104.0,0.00836975]
[1736506197311,0.210273,95114.0,95104.0,0.00836975]
[1736506198911,0.210273,95114.0,95101.0,0.09432029]
[1736506199084,0.210273,95114.0,95105.0,0.00836897]
[1736506199289,0.210273,95114.0,95102.0,0.09432029]
[1736506199488,0.210273,95114.0,95106.0,0.0083682]
[1736506199724,0.210273,95114.0,95102.0,0.09432029]
[1736506199950,0.210273,95114.0,95107.0,0.00836743]
[1736506200130,0.210273,95114.0,95102.0,0.09432029]
[1736506200332,0.210281,95111.0,95108.0,0.00836666]
[1736506200539,0.10429976,95110.0,95102.0,0.09432029]
[1736506200768,0.210287,95108.0,95102.0,0.09432029]
[1736506200944,0.210297,95104.0,95103.0,0.00837207]
[1736506201979,0.210297,95104.0,95097.0,0.09432029]
[1736506202158,0.210297,95104.0,95103.0,0.00837207]
[1736506202318,0.210297,95104.0,95097.0,0.09432029]
[1736506202319,0.0817,95099.0,95097.0,0.09432029]
[1736506202532,0.31460876,95098.0,95097.0,0.09432029]
[1736506202732,0.210318,95094.0,95093.0,0.09432029]
[1736506202940,0.210311,95097.0,95093.0,0.09432029]
[1736506203146,0.10429976,95096.0,95093.0,0.09432029]
[1736506203355,0.210311,95097.0,95093.0,0.09432029]
[1736506203727,0.210311,95097.0,95088.0,0.09446633]
[1736506204139,0.210311,95097.0,95088.0,0.00014604]
[1736506204907,0.002,95094.0,95088.0,0.00014604]
[1736506205447,0.005,95096.0,95088.0,0.00014604]
[1736506205633,0.210315,95095.0,95088.0,0.00014604]
[1736506206078,0.537715,95095.0,95088.0,0.00014604]
[1736506206461,0.537715,95095.0,95088.0,0.00114604]
[1736506206760,0.537715,95095.0,95088.0,0.00014604]
[1736506206761,0.3274,95095.0,95088.0,0.00014604]
[1736506207275,0.3314,95095.0,95088.0,0.00014604]
[1736506208386,0.3324,95095.0,95088.0,0.00014604]
[1736506210919,0.3324,95095.0,95089.0,0.00838493]
[1736506211313,0.3324,95095.0,95088.0,0.00014604]
[1736506211641,0.3324,95095.0,95089.0,0.00838493]
[1736506211843,0.3314,95095.0,95088.0,0.00014604]
[1736506212079,0.3314,95095.0,95089.0,0.00838578]
[1736506212307,0.3314,95095.0,95088.0,0.00014604]
[1736506212308,0.3324,95095.0,95088.0,0.00014604]
[1736506212477,0.3284,95095.0,95088.0,0.00014604]
[1736506212696,0.3314,95095.0,95089.0,0.00838578]
[1736506213124,0.3324,95095.0,95088.0,0.00014604]
[1736506213498,0.3324,95095.0,95089.0,0.00838578]
[1736506213904,0.3284,95095.0,95088.0,0.00014604]
[1736506214314,0.3324,95095.0,95089.0,0.00838578]
[1736506214540,0.3314,95095.0,95089.0,0.00838578]
[1736506214744,0.3324,95095.0,95088.0,0.00014604]
[1736506215232,0.3324,95095.0,95089.0,0.00838576]
[1736506215645,0.3274,95095.0,95088.0,0.00014604]
[1736506215822,0.3314,95095.0,95088.0,0.00014604]
[1736506216029,0.3324,95095.0,95089.0,0.00838575]
[1736506216230,0.3324,95095.0,95088.0,0.00014604]
[1736506216461,0.3324,95095.0,95089.0,0.00838575]
[1736506216778,0.3284,95095.0,95088.0,0.00014604]
[1736506217222,0.3284,95095.0,95089.0,0.00838575]
[1736506217443,0.3324,95095.0,95089.0,0.00838575]
[1736506217675,0.3324,95095.0,95088.0,0.00014604]
[1736506217866,0.3314,95095.0,95088.0,0.00014604]
[1736506218174,0.3324,95095.0,95089.0,0.00838575]
[1736506218505,0.3324,95095.0,95088.0,0.00014604]
[1736506218743,0.3274,95095.0,95088.0,0.00014604]
[1736506218910,0.3274,95095.0,95089.0,0.00838575]
[1736506219113,0.3324,95095.0,95089.0,0.00838575]
[1736506219342,0.3284,95095.0,95088.0,0.00014604]
[1736506219622,0.3324,95095.0,95088.0,0.00014604]
[1736506219856,0.3274,95095.0,95089.0,0.00838575]
[1736506220190,0.3274,95095.0,95088.0,0.00014604]
[1736506220626,0.3274,95095.0,95089.0,0.00838575]
[1736506220830,0.3314,95095.0,95088.0,0.00014604]
[1736506221032,0.3314,95095.0,95089.0,0.00838575]
[1736506221233,0.3324,95095.0,95088.0,0.00014604]
[1736506221444,0.3324,95095.0,95089.0,0.00838575]
[1736506221649,0.3314,95095.0,95088.0,0.00014604]
[1736506221910,0.3314,95095.0,95089.0,0.0083857]
[1736506222072,0.3284,95095.0,95089.0,0.0083857]
[1736506222273,0.3324,95095.0,95088.0,0.00014604]
[1736506222492,0.3324,95095.0,95089.0,0.00838566]
[1736506222693,0.3314,95095.0,95088.0,0.00014604]
[1736506222921,0.3314,95095.0,95089.0,0.00838566]
[1736506223141,0.3324,95095.0,95089.0,0.00838566]
[1736506223326,0.3324,95095.0,95088.0,0.00014604]
[1736506223796,0.3324,95095.0,95089.0,0.00838563]
[1736506224213,0.3324,95095.0,95088.0,0.08174604]
[1736506224418,0.3324,95095.0,95090.0,0.00838486]
[1736506224624,0.3324,95095.0,95089.0,0.00838563]
[1736506224806,0.3324,95095.0,95091.0,0.00838409]
[1736506225012,0.3324,95095.0,95090.0,0.00838486]
[1736506225228,0.3284,95095.0,95092.0,0.00838332]
[1736506225471,0.3274,95095.0,95091.0,0.00838409]
[1736506225680,0.3324,95095.0,95092.0,0.00838332]
[1736506225867,0.3324,95095.0,95090.0,0.210327]
[1736506226035,0.3324,95095.0,95091.0,0.00838409]
[1736506226239,0.3274,95095.0,95088.0,0.00014604]
[1736506226601,0.3284,95095.0,95089.0,0.00838415]
[1736506226777,0.3274,95095.0,95089.0,0.00838415]
[1736506228845,0.3284,95095.0,95089.0,0.00838415]
[1736506229073,0.3274,95095.0,95089.0,0.00838415]
[1736506229564,0.3284,95095.0,95089.0,0.00838415]
[1736506240219,0.3284,95095.0,95091.0,0.0454]
[1736506240651,0.3284,95095.0,95094.0,0.210318]
[1736506241058,0.3284,95095.0,95094.0,0.22035184]
[1736506242068,0.001,95095.0,95094.0,0.22035184]
[1736506242476,0.210269,95116.0,95101.0,0.210301]
[1736506242914,0.210269,95116.0,95102.0,0.01002753]
[1736506243937,0.212269,95116.0,95102.0,0.01002753]
[1736506245019,0.213269,95116.0,95102.0,0.01002753]
[1736506245401,0.215269,95116.0,95102.0,0.01002753]
[1736506245607,0.214269,95116.0,95102.0,0.01002753]
[1736506245810,0.215269,95116.0,95102.0,0.10461435]
[1736506246440,0.215269,95116.0,95102.0,0.01002753]
[1736506246915,0.215269,95116.0,95102.0,0.09262753]
[1736506247884,0.215269,95116.0,95102.0,0.18721435]
[1736506248073,0.425538,95116.0,95102.0,0.18721435]
[1736506248934,0.210279,95112.0,95102.0,0.18721435]
[1736506249144,0.210279,95112.0,95102.0,0.09262753]
[1736506250119,0.210287,95108.0,95102.0,0.01002753]
[1736506250838,0.210279,95112.0,95102.0,0.01002753]
[1736506252061,0.210279,95112.0,95099.0,0.09458682]
[1736506252262,0.210279,95112.0,95103.0,0.01002447]
[1736506252483,0.212279,95112.0,95099.0,0.09458682]
[1736506252682,0.212279,95112.0,95104.0,0.01002368]
[1736506252894,0.211279,95112.0,95099.0,0.09458682]
[1736506253343,0.213279,95112.0,95100.0,0.01002684]
[1736506253534,0.211279,95112.0,95100.0,0.01002684]
[1736506253941,0.210287,95108.0,95100.0,0.01002684]
[1736506254114,0.210299,95103.0,95100.0,0.01002684]
[1736506254308,0.420598,95103.0,95100.0,0.01002684]
[1736506254737,0.4707178,95103.0,95100.0,0.01002684]
[1736506254887,0.420598,95103.0,95100.0,0.01002684]
[1736506255295,0.2103,95102.0,95100.0,0.002]
[1736506255726,0.210314,95096.0,95089.0,0.09458682]
[1736506256162,0.210314,95096.0,95090.0,0.01003332]
[1736506258125,0.001,95096.0,95090.0,0.01003332]
[1736506258339,0.21031,95098.0,95090.0,0.01003332]
[1736506258782,0.001,95096.0,95090.0,0.01003332]
[1736506259193,0.001,95096.0,95088.0,0.09473286]
[1736506259399,0.21031,95098.0,95091.0,0.01003643]
[1736506259629,0.21031,95098.0,95088.0,0.09473286]
[1736506260193,0.3274,95101.0,95093.0,0.210319]
[1736506260396,0.002,95098.0,95089.0,0.22036701]
[1736506260546,0.002,95098.0,95094.0,0.01003407]
[1736506260750,0.002,95098.0,95089.0,0.210329]
[1736506260973,0.002,95098.0,95095.0,0.01003328]
[1736506261173,0.002,95098.0,95089.0,0.210329]
[1736506261377,0.002,95098.0,95096.0,0.01003249]
[1736506261581,0.3274,95101.0,95088.0,0.09473286]
[1736506261832,0.210311,95097.0,95088.0,0.09473286]
[1736506262052,0.210311,95097.0,95089.0,0.01003749]
[1736506262493,0.292111,95097.0,95089.0,0.01003749]
[1736506263323,0.294111,95097.0,95089.0,0.01003749]
[1736506263537,0.01,95096.0,95089.0,0.01003749]
[1736506265749,0.011,95096.0,95089.0,0.01003749]
[1736506269052,0.011,95096.0,95089.0,0.00775149]
[1736506269263,0.011,95096.0,95089.0,0.00994145]
[1736506269845,0.210315,95095.0,95089.0,0.00994145]
[1736506270065,0.011,95096.0,95089.0,0.00994145]
[1736506272287,0.210315,95095.0,95089.0,0.00994145]
[1736506272462,0.011,95096.0,95089.0,0.00994145]
[1736506276452,0.210315,95095.0,95089.0,0.00994145]
[1736506278382,0.211315,95095.0,95089.0,0.00994145]
[1736506283397,0.001,95095.0,95089.0,0.00994145]
[1736506291096,0.210318,95094.0,95089.0,0.00994145]
[1736506292325,0.211318,95094.0,95089.0,0.00994145]
[1736506293258,0.211318,95094.0,95089.0,0.10452827]
[1736506294374,0.001,95094.0,95089.0,0.10452827]
[1736506296201,0.001,95094.0,95090.0,0.09458682]
[1736506296798,0.001,95094.0,95091.0,0.00993992]
[1736506297152,0.001,95094.0,95090.0,0.09458682]
[1736506297353,0.001,95094.0,95091.0,0.00993992]
[1736506297708,0.001,95094.0,95091.0,0.09458682]
[1736506297868,0.001,95094.0,95092.0,0.00993913]
[1736506298214,0.210311,95097.0,95092.0,0.10452595]
[1736506298567,0.001,95094.0,95092.0,0.10452595]
[1736506299189,0.002,95094.0,95092.0,0.10452595]
[1736506300190,0.002,95094.0,95092.0,0.15181936]
[1736506300749,0.002,95094.0,95093.0,0.00952323]
[1736506302002,0.210311,95097.0,95093.0,0.00952323]
[1736506302207,0.001,95094.0,95093.0,0.00952323]
[1736506302996,0.00087343,95094.0,95093.0,0.00952323]
[1736506304710,0.00087343,95094.0,95093.0,0.08852323]
[1736506305606,0.3274,95101.0,95093.0,0.08852323]
[1736506306424,0.001,95094.0,95093.0,0.08952323]
[1736506306793,0.3274,95101.0,95093.0,0.08952323]
[1736506306996,0.3274,95101.0,95097.0,0.09473085]
[1736506307445,0.3274,95101.0,95098.0,0.00951996]
[1736506307640,0.3274,95101.0,95100.0,0.18917364]
[1736506307840,0.210282,95111.0,95100.0,0.18917364]
[1736506308037,0.210282,95111.0,95100.0,0.19869202]
[1736506308304,0.210282,95111.0,95100.0,0.00951838]
[1736506308880,0.001,95101.0,95100.0,0.00951838]
[1736506309056,0.210282,95111.0,95100.0,0.00951838]
[1736506309265,0.210282,95111.0,95098.0,0.18917364]
[1736506309472,0.210282,95111.0,95101.0,0.00951759]
[1736506309675,0.210282,95111.0,95100.0,0.001]
[1736506309874,0.210282,95111.0,95102.0,0.0095168]
[1736506310076,0.210282,95111.0,95101.0,0.00951759]
[1736506310273,0.210282,95111.0,95103.0,0.00951602]
[1736506310452,0.210282,95111.0,95102.0,0.0095168]
[1736506310660,0.210282,95111.0,95104.0,0.00951523]
[1736506310962,0.210282,95111.0,95105.0,0.00951444]
[1736506311187,0.210282,95111.0,95102.0,0.0946911]
[1736506311710,0.210282,95111.0,95103.0,0.00951487]
[1736506312285,0.210282,95111.0,95105.0,0.001]
[1736506312481,0.210282,95111.0,95104.0,0.00951408]
[1736506312714,0.360274,95114.0,95102.0,0.001]
[1736506312911,0.210274,95114.0,95103.0,0.0826]
[1736506313114,0.210271,95116.0,95103.0,0.09211487]
[1736506313497,0.210271,95116.0,95103.0,0.09311487]
[1736506313706,0.210271,95116.0,95106.0,0.0946911]
[1736506313707,0.210278,95112.0,95106.0,0.0946911]
[1736506313914,0.210278,95112.0,95107.0,0.00951172]
[1736506314520,0.210287,95109.0,95107.0,0.00951172]
[1736506314730,0.537664,95119.0,95107.0,0.00951172]
[1736506314731,0.210272,95115.0,95107.0,0.00951172]
[1736506314932,0.43169976,95115.0,95105.0,0.0946911]
[1736506315190,0.001,95114.0,95106.0,0.03251251]
[1736506315335,0.001,95116.0,95112.0,0.210276]
[1736506315535,0.001,95116.0,95113.0,0.023]
[1736506315740,0.15,95126.0,95113.0,0.00950432]
[1736506315945,0.15,95130.0,95114.0,0.023]
[1736506316140,0.15,95128.0,95114.0,0.023]
[1736506316352,0.15,95128.0,95116.0,0.023]
[1736506316547,0.15,95128.0,95118.0,0.023]
[1736506316776,0.15,95128.0,95119.0,0.00949957]
[1736506316971,0.15,95128.0,95120.0,0.023]
[1736506317129,0.15,95128.0,95121.0,0.00949688]
[1736506317342,0.15,95128.0,95122.0,0.023]
[1736506317810,0.15,95128.0,95115.0,0.023]
[1736506317811,0.15004866,95128.0,95115.0,0.023]
[1736506318244,0.15004866,95128.0,95117.0,0.023]
[1736506318653,0.19384725,95128.0,95119.0,0.023]
[1736506318869,0.15,95126.0,95119.0,0.023]
[1736506319075,0.15,95126.0,95112.0,0.023]
[1736506319076,0.210249,95125.0,95112.0,0.023]
[1736506319372,0.210249,95125.0,95114.0,0.023]
[1736506319599,0.210249,95125.0,95115.0,0.00950086]
[1736506319802,0.210249,95125.0,95116.0,0.023]
[1736506320331,0.210249,95125.0,95118.0,0.023]
[1736506320544,0.15004866,95128.0,95117.0,0.00949928]
[1736506320751,0.15,95126.0,95114.0,0.023]
[1736506320956,0.15,95126.0,95118.0,0.00949849]
[1736506321407,0.15,95126.0,95119.0,0.0094977]
[1736506321612,0.15,95124.0,95119.0,0.0094977]
[1736506322514,4.866e-05,95128.0,95119.0,0.0094977]
[1736506322917,0.210245,95127.0,95119.0,0.0094977]
[1736506323096,0.210245,95127.0,95119.0,0.0114977]
[1736506323529,0.210245,95127.0,95119.0,0.0094977]
[1736506324487,0.210245,95127.0,95118.0,0.0823]
[1736506325261,0.210245,95127.0,95119.0,0.01049507]
[1736506325510,0.210245,95127.0,95119.0,0.01149507]
[1736506325727,0.210245,95127.0,95119.0,0.00949507]
[1736506326631,0.210245,95127.0,95119.0,0.01049507]
[1736506327824,4.866e-05,95128.0,95119.0,0.01049507]
[1736506328520,0.210245,95127.0,95119.0,0.01049507]
[1736506328994,0.210245,95127.0,95119.0,0.00949507]
[1736506329600,4.866e-05,95128.0,95119.0,0.00949507]
[1736506329797,0.210245,95127.0,95119.0,0.01049507]
[1736506330677,4.866e-05,95128.0,95121.0,0.210258]
[1736506331061,4.866e-05,95128.0,95123.0,0.023]
[1736506331434,4.866e-05,95128.0,95125.0,0.023]
[1736506331837,4.866e-05,95128.0,95126.0,0.00944724]
[1736506332032,0.04109329,95128.0,95126.0,0.00944724]
[1736506332258,4.866e-05,95128.0,95126.0,0.00944724]
[1736506332470,4.866e-05,95128.0,95115.0,0.023]
[1736506332862,4.866e-05,95128.0,95117.0,0.023]
[1736506333264,4.866e-05,95128.0,95119.0,0.023]
[1736506333840,4.866e-05,95128.0,95120.0,0.00945146]
[1736506334148,4.866e-05,95128.0,95115.0,0.023]
[1736506334355,4.866e-05,95128.0,95117.0,0.023]
[1736506334637,4.866e-05,95128.0,95119.0,0.023]
[1736506335002,4.866e-05,95128.0,95120.0,0.00945146]
[1736506335471,4.866e-05,95128.0,95115.0,0.023]
[1736506335782,4.866e-05,95128.0,95117.0,0.023]
[1736506335984,4.866e-05,95128.0,95119.0,0.023]
[1736506336248,4.866e-05,95128.0,95120.0,0.00945146]
[1736506336470,4.866e-05,95128.0,95120.0,0.01145146]
[1736506336674,4.866e-05,95128.0,95120.0,0.002]
[1736506336852,0.210245,95127.0,95120.0,0.002]
[1736506337183,0.210245,95127.0,95115.0,0.023]
[1736506337594,0.210245,95127.0,95120.0,0.001]
[1736506337971,0.210245,95127.0,95117.0,0.023]
[1736506338227,0.210245,95127.0,95119.0,0.023]
[1736506338653,0.210254,95123.0,95120.0,0.00944953]
[1736506339066,0.291054,95123.0,95110.0,0.0009847]
[1736506339264,0.291054,95123.0,95117.0,0.001]
[1736506339650,0.291054,95123.0,95110.0,0.0239847]
[1736506339948,0.291054,95123.0,95120.0,0.002]
[1736506340249,0.291054,95123.0,95110.0,0.0239847]
[1736506340402,0.291054,95123.0,95121.0,0.00944875]
[1736506340608,0.291054,95123.0,95117.0,0.002]
[1736506340958,0.291054,95123.0,95120.0,0.001]
[1736506341332,0.291054,95123.0,95117.0,0.002]
[1736506341727,0.291054,95123.0,95121.0,0.001]
[1736506342124,0.501308,95123.0,95117.0,0.002]
[1736506342326,0.501308,95123.0,95110.0,0.0009847]
[1736506342527,0.501308,95123.0,95117.0,0.001]
[1736506342842,0.501308,95123.0,95120.0,0.002]
[1736506343054,0.501308,95123.0,95117.0,0.001]
[1736506343489,0.210263,95119.0,95117.0,0.003]
[1736506343689,0.210263,95119.0,95117.0,0.001]
[1736506343956,0.210274,95114.0,95103.0,0.023]
[1736506344185,0.210274,95114.0,95110.0,0.001]
[1736506344412,0.210263,95119.0,95110.0,0.001]
[1736506344641,0.210263,95119.0,95103.0,0.023]
[1736506344934,0.291054,95123.0,95117.0,0.001]
[1736506345188,4.866e-05,95128.0,95119.0,0.0485]